bitfinex-derivatives/quotes_ETHF0:USTF0_20260115
["timestamp","ask_amount","ask_price","bid_price","bid_amount"]
[1768442088921,0.13265897,3331.2,3330.0,2.14883446]
[1768442089130,1.97286265,3331.1,3329.9,1.187]
[1768442089318,0.87836922,3331.0,3329.9,2.14883446]
[1768442089517,0.87830921,3330.9,3329.9,2.14883446]
[1768442089821,0.13265897,3331.1,3329.9,2.14883446]
[1768442090016,0.87832112,3331.0,3329.9,2.14883446]
[1768442090222,0.1501,3331.4,3330.1,0.96183446]
[1768442090420,0.87834489,3331.3,3330.1,0.96183446]
[1768442090620,0.87834489,3331.2,3330.1,0.96183446]
[1768442090826,0.87834489,3331.1,3330.1,0.96183446]
[1768442091025,0.87834489,3331.0,3330.1,0.96183446]
[1768442091226,0.1501,3331.4,3330.1,0.96183446]
[1768442091427,0.87835562,3331.3,3329.9,1.187]
[1768442091630,0.87835562,3331.2,3330.0,0.13145393]
[1768442091828,0.1501,3331.4,3330.0,0.13145393]
[1768442092018,0.87842198,3331.3,3330.0,0.13145393]
[1768442092220,0.87842198,3331.2,3330.0,0.13145393]
[1768442092419,0.1501,3331.4,3330.0,0.13145393]
[1768442092624,0.87841226,3331.3,3330.0,0.13145393]
[1768442092819,0.87841226,3331.2,3330.0,0.13145393]
[1768442093020,0.1501,3331.4,3330.0,0.13145393]
[1768442093231,0.87841294,3331.3,3330.0,0.13145393]
[1768442093430,0.87841294,3331.2,3330.0,0.13145393]
[1768442093632,0.1501,3331.4,3330.0,0.13145393]
[1768442093839,0.87840227,3331.3,3330.0,0.13145393]
[1768442094022,0.87840227,3331.2,3330.0,0.13145393]
[1768442094225,0.13602609,3331.6,3330.0,0.13145393]
[1768442094425,0.87840206,3331.5,3330.0,0.13145393]
[1768442094625,0.87840206,3331.4,3330.0,0.13145393]
[1768442094826,0.87840206,3331.3,3330.0,0.13145393]
[1768442095021,0.87840206,3331.2,3330.0,0.13145393]
[1768442095236,0.13602609,3331.6,3330.0,0.13145393]
[1768442095534,0.87839952,3331.5,3330.0,0.13145393]
[1768442095833,0.87839952,3331.4,3330.0,0.13145393]
[1768442096033,0.87839952,3331.3,3330.0,0.13145393]
[1768442096240,0.87839952,3331.2,3330.0,0.13145393]
[1768442096431,0.13602609,3331.6,3330.0,0.13145393]
[1768442096641,0.87845139,3331.5,3330.0,0.13145393]
[1768442096830,0.87845139,3331.4,3330.0,0.13145393]
[1768442097030,0.87845139,3331.3,3330.0,0.13145393]
[1768442097329,0.13602609,3331.6,3330.0,0.13145393]
[1768442097330,0.87845139,3331.2,3330.0,0.13145393]
[1768442097533,0.13602609,3331.6,3330.0,0.13145393]
[1768442097735,1.01450207,3331.5,3330.0,0.13145393]
[1768442097926,0.87847598,3331.4,3330.0,0.13145393]
[1768442099136,0.87847598,3331.4,3329.9,1.187]
[1768442099339,0.87847598,3331.4,3329.9,1.31845393]
[1768442099954,0.13602609,3331.3,3329.9,1.187]
[1768442100136,0.87847598,3331.2,3329.9,1.187]
[1768442100333,0.87847598,3331.2,3329.7,0.96207615]
[1768442100334,1.01450207,3331.2,3330.0,1.187]
[1768442100537,0.87847598,3331.1,3330.0,1.187]
[1768442101636,0.13602609,3331.0,3329.3,0.96207615]
[1768442101843,1.01479934,3330.9,3329.5,1.187]
[1768442102036,0.87877325,3330.8,3329.6,1.187]
[1768442102336,0.1501,3331.3,3329.6,1.187]
[1768442102538,0.13602609,3330.8,3329.4,0.00450409]
[1768442102739,1.01479357,3330.7,3329.4,0.00450409]
[1768442103134,1.01479357,3330.6,3329.4,0.00450409]
[1768442103440,0.13602609,3330.4,3329.4,0.00450409]
[1768442103641,1.01479357,3330.3,3329.4,0.00450409]
[1768442103842,0.13602609,3330.3,3329.4,0.00450409]
[1768442104838,1.01394368,3330.2,3329.4,0.00450409]
[1768442105042,0.87791759,3330.1,3329.4,0.00450409]
[1768442105545,0.13602609,3330.2,3329.4,0.00450409]
[1768442106445,0.13602609,3330.7,3329.4,0.00450409]
[1768442106633,1.01324318,3330.6,3329.4,0.00450409]
[1768442106830,0.87721709,3330.5,3329.4,0.00450409]
[1768442107134,0.87721709,3330.5,3327.2,0.15028]
[1768442107135,0.13602609,3329.1,3327.2,0.15028]
[1768442107332,1.01324318,3329.0,3327.2,0.15028]
[1768442107534,0.13602609,3329.0,3327.2,0.15028]
[1768442107744,0.13602609,3329.0,3327.2,1.11235615]
[1768442108037,0.13602609,3329.0,3327.8,0.00450409]
[1768442108038,0.00450408,3328.4,3327.8,0.00450409]
[1768442108540,0.00382947,3329.0,3327.8,0.00450409]
[1768442109343,0.13985556,3329.0,3327.8,0.00450409]
[1768442111344,0.00382947,3329.0,3327.8,0.00450409]
[1768442113140,0.00382947,3329.0,3327.9,0.96207615]
[1768442113740,0.13985556,3329.0,3327.8,0.00450409]
[1768442116153,0.13602609,3328.7,3327.2,0.00304846]
[1768442117348,0.00450409,3328.3,3327.6,0.00450409]
[1768442118245,0.00450409,3328.3,3327.2,0.00304846]
[1768442119350,0.00450409,3328.3,3327.4,0.00450409]
[1768442124352,0.00382947,3329.0,3327.6,0.96207615]
[1768442124747,0.00382947,3329.0,3327.5,0.14448024]
[1768442124946,0.00382947,3329.0,3327.6,0.96207615]
[1768442126346,0.00382947,3329.0,3327.4,0.15478409]
[1768442126548,0.00450409,3328.6,3327.4,0.15478409]
[1768442136252,0.00450409,3328.6,3327.5,1.187]
[1768442136451,0.87931037,3328.5,3327.5,1.187]
[1768442136654,0.87931037,3328.4,3327.5,1.187]
[1768442136856,0.00450409,3328.6,3327.5,1.187]
[1768442137056,0.13910471,3328.4,3327.4,0.00450409]
[1768442137262,1.0194634,3328.3,3327.4,0.00450409]
[1768442137469,0.88035869,3328.2,3327.4,0.00450409]
[1768442137674,0.88035869,3328.1,3327.4,0.00450409]
[1768442137875,0.88035869,3328.0,3327.4,0.00450409]
[1768442138076,0.88035869,3327.9,3327.4,0.00450409]
[1768442138271,0.13910471,3328.3,3327.4,0.00450409]
[1768442138464,0.87988259,3328.2,3327.4,0.00450409]
[1768442138670,0.87988259,3328.1,3327.4,0.00450409]
[1768442138878,0.87988259,3328.0,3327.4,0.00450409]
[1768442139075,0.87988259,3327.9,3327.4,0.00450409]
[1768442139272,0.13910471,3328.3,3327.4,0.00450409]
[1768442139472,0.87975153,3328.2,3327.4,0.00450409]
[1768442139667,0.00450409,3328.6,3326.3,0.15032]
[1768442139668,1.01885624,3328.1,3326.3,0.15032]
[1768442139875,0.13910471,3327.9,3326.4,1.187]
[1768442140076,0.87975153,3327.8,3326.4,1.187]
[1768442140280,0.13910471,3327.9,3326.4,1.187]
[1768442140480,0.87782805,3327.8,3326.4,1.187]
[1768442140675,0.13910471,3327.9,3326.4,1.187]
[1768442140876,0.87773036,3327.8,3326.8,0.00450409]
[1768442141072,0.13910471,3327.9,3326.8,0.00450409]
[1768442141276,0.87772645,3327.8,3326.8,0.00450409]
[1768442141581,0.13910471,3327.9,3326.8,0.00450409]
[1768442141779,0.87752394,3327.8,3326.8,0.00450409]
[1768442141977,0.13910471,3327.6,3326.4,0.00247224]
[1768442142281,0.13910471,3327.3,3325.5,0.15036]
[1768442142478,1.01652922,3327.2,3325.6,0.15036]
[1768442142681,0.87742451,3327.1,3325.8,0.96207615]
[1768442142871,0.87742451,3327.0,3325.8,0.96207615]
[1768442143186,0.00450409,3326.7,3326.1,0.00450409]
[1768442148187,0.13910471,3327.8,3326.5,0.96207615]
[1768442148482,0.87428582,3327.7,3326.5,0.96207615]
[1768442148682,0.87428582,3327.6,3326.5,0.96207615]
[1768442148879,0.13910471,3327.8,3326.4,1.049]
[1768442149072,0.00450409,3327.4,3326.4,1.049]
[1768442149472,0.13910471,3328.3,3326.4,1.049]
[1768442149669,0.8743155,3328.2,3326.7,0.96207615]
[1768442149874,0.8743155,3328.1,3326.7,0.96207615]
[1768442150072,0.8743155,3328.0,3326.7,0.96207615]
[1768442150277,0.13910471,3328.3,3326.7,0.96207615]
[1768442150472,0.00450409,3327.8,3326.7,0.96207615]
[1768442151276,0.00450409,3327.8,3327.2,0.96379215]
[1768442153488,0.14341805,3328.9,3327.5,0.96379215]
[1768442153681,0.87466203,3328.8,3328.4,0.96379215]
[1768442153880,0.14341805,3328.9,3328.4,0.96674416]
[1768442154389,0.14341805,3329.3,3328.4,0.96674416]
[1768442154686,0.14341805,3329.3,3328.4,0.97124825]
[1768442155072,1.01817922,3329.2,3328.4,0.0074561]
[1768442155277,0.14341805,3329.1,3328.4,0.0074561]
[1768442155476,0.14591435,3329.1,3328.4,0.0074561]
[1768442163090,0.0024963,3329.1,3328.4,0.0074561]
[1768442163292,0.14341805,3329.6,3328.4,0.0074561]
[1768442163589,0.14341805,3330.4,3328.4,0.0074561]
[1768442163795,0.14341805,3330.2,3328.4,0.0074561]
[1768442163993,0.14341805,3330.0,3328.4,0.0074561]
[1768442164296,0.87395398,3329.9,3328.4,0.0074561]
[1768442164593,0.14560911,3330.0,3328.4,0.0074561]
[1768442164794,0.8737201,3329.9,3328.4,0.0074561]
[1768442164996,0.14560911,3330.0,3328.4,0.0074561]
[1768442176704,0.14341805,3329.8,3328.4,0.0074561]
[1768442177597,0.14341805,3329.8,3328.9,0.96282896]
[1768442179110,0.00219106,3330.0,3329.4,0.96282896]
[1768442179507,0.14341805,3330.2,3329.4,0.96282896]
[1768442179901,0.14341805,3330.1,3328.8,2.14982896]
[1768442180201,0.14341805,3329.8,3328.5,0.96282896]
[1768442180402,0.14714019,3329.8,3328.5,0.96282896]
[1768442181108,0.14714019,3329.8,3328.4,1.1944561]
[1768442181299,0.87629255,3329.7,3328.4,1.1944561]
[1768442181495,0.14714019,3329.8,3328.4,1.1944561]
[1768442181697,0.00372214,3329.8,3328.4,1.3446861]
[1768442183305,0.00372214,3329.8,3328.4,1.4800144]
[1768442184399,0.87782616,3329.7,3328.4,1.4800144]
[1768442184600,0.00372214,3329.8,3328.4,1.4800144]
[1768442184907,0.00372214,3329.8,3328.4,0.0074561]
[1768442184908,0.13618444,3329.6,3328.4,0.0074561]
[1768442185094,0.13618444,3329.4,3327.0,0.1353283]
[1768442185411,0.13618444,3329.2,3327.1,1.186]
[1768442185614,0.13618444,3329.0,3327.1,1.186]
[1768442185911,1.01368905,3328.9,3327.1,1.186]
[1768442186113,0.00450409,3328.3,3327.7,0.00450409]
[1768442193116,0.14068853,3328.3,3327.1,1.18908057]
[1768442194115,0.14068853,3328.3,3327.4,0.00450409]
[1768442197915,0.14068853,3328.3,3327.1,0.00308057]
[1768442198919,0.14068853,3328.3,3327.4,0.00450409]
[1768442213333,1.01159981,3328.2,3327.4,0.00450409]
[1768442213525,0.13237547,3328.2,3327.1,0.00308057]
[1768442214326,1.01250721,3328.1,3327.1,0.00308057]
[1768442214527,0.13237547,3328.1,3327.1,0.00308057]
[1768442214837,0.13237547,3328.1,3327.3,0.00450409]
[1768442216632,0.88034903,3328.0,3327.3,0.00450409]
[1768442216826,0.13237547,3328.1,3327.3,0.00450409]
[1768442217237,0.88034999,3328.0,3327.3,0.00450409]
[1768442217535,0.13237547,3328.1,3327.3,0.00450409]
[1768442217836,0.88050514,3328.0,3327.3,0.00450409]
[1768442218020,0.13237547,3328.1,3327.3,0.00450409]
[1768442218225,0.88050617,3328.0,3327.3,0.00450409]
[1768442218426,0.13237547,3328.1,3327.3,0.00450409]
[1768442218627,1.01306275,3328.0,3327.3,0.00450409]
[1768442218826,0.13237547,3328.0,3327.3,0.00450409]
[1768442219431,0.00450409,3328.3,3326.2,1.11420263]
[1768442219432,0.13237547,3327.8,3326.3,3.006]
[1768442219625,0.13237547,3327.6,3326.0,0.96387263]
[1768442219824,0.15025,3328.0,3326.0,2.14987263]
[1768442219825,0.13237547,3327.4,3326.0,2.14987263]
[1768442220230,0.13237547,3327.4,3326.4,0.00450409]
[1768442220431,0.13604455,3327.4,3326.4,0.00836113]
[1768442223433,0.13237547,3327.2,3326.4,0.00836113]
[1768442223634,0.00366908,3327.4,3325.0,0.96387263]
[1768442223635,0.13237547,3327.0,3325.2,0.13867236]
[1768442223937,0.13237547,3327.0,3325.4,2.14987263]
[1768442224726,0.13237547,3327.0,3325.9,0.00300277]
[1768442224727,0.00450409,3326.5,3325.9,0.00300277]
[1768442232639,0.13687956,3326.5,3325.4,0.00386753]
[1768442235446,0.00450409,3326.5,3325.4,0.00386753]
[1768442235945,0.00366908,3327.4,3325.8,0.96387263]
[1768442235946,0.13604455,3327.4,3325.8,0.96387263]
[1768442236142,1.00831159,3327.3,3325.8,0.96387263]
[1768442236346,0.13237547,3327.3,3325.8,0.96387263]
[1768442237046,0.00450409,3326.9,3326.2,0.00450408]
[1768442237746,0.00366908,3327.4,3326.2,0.96837671]
[1768442238755,0.00450409,3327.1,3326.2,0.96837671]
[1768442244651,0.00366908,3327.4,3326.2,0.96837671]
[1768442244843,0.00366908,3327.4,3326.3,0.13106019]
[1768442245047,0.14284929,3328.1,3326.6,0.96387263]
[1768442245348,0.87816255,3328.0,3326.6,1.09493282]
[1768442245556,0.14284929,3328.1,3326.6,1.09493282]
[1768442245749,0.00450409,3327.6,3326.6,1.09493282]
[1768442246053,0.00354075,3327.6,3326.6,1.09493282]
[1768442246451,0.00354075,3327.6,3326.7,0.96387263]
[1768442247051,0.00450409,3327.5,3326.7,0.96387263]
[1768442247239,0.14284929,3328.5,3326.7,0.96387263]
[1768442247552,0.87854489,3328.4,3326.7,0.96387263]
[1768442247755,0.87854489,3328.3,3326.7,0.96387263]
[1768442247954,0.87854489,3328.2,3326.7,1.09493282]
[1768442248247,0.00264097,3328.2,3326.7,1.09493282]
[1768442248453,0.00450409,3327.8,3326.7,1.09493282]
[1768442253253,0.00450409,3327.8,3326.8,0.13106019]
[1768442254158,0.00450409,3327.8,3326.7,0.96387263]
[1768442257952,0.00264097,3328.2,3327.1,0.96387263]
[1768442258556,0.00264097,3328.2,3327.1,1.09493282]
[1768442258958,0.00300278,3328.0,3327.1,1.09493282]
[1768442259263,0.00264097,3328.2,3327.1,1.09493282]
[1768442259962,0.00264097,3328.2,3327.2,0.13106019]
[1768442260569,0.14284929,3329.3,3327.6,0.13106019]
[1768442260754,0.87781471,3329.2,3328.1,0.00450409]
[1768442261060,0.87781471,3329.1,3328.1,0.00450409]
[1768442261269,0.14284929,3329.3,3328.1,0.00450409]
[1768442261270,0.87781471,3329.0,3328.1,0.00450409]
[1768442261566,0.00283393,3329.0,3328.1,0.00726868]
[1768442262661,0.14568322,3329.0,3328.1,0.00726868]
[1768442264564,0.14568322,3329.0,3327.5,1.186]
[1768442265060,0.14568322,3329.0,3326.7,1.09493282]
[1768442265257,0.14284929,3328.8,3326.8,1.3363]
[1768442265457,0.14284929,3328.6,3327.5,0.00450409]
[1768442265663,0.14735337,3328.4,3327.5,0.00450409]
[1768442266965,0.14284929,3328.9,3327.5,0.96837672]
[1768442267154,0.00283393,3329.0,3327.5,0.96837672]
[1768442267953,0.00283393,3329.0,3327.5,1.09943691]
[1768442268466,0.00283393,3329.0,3327.5,0.13556428]
[1768442268658,0.14568322,3329.0,3327.5,0.00450409]
[1768442271271,0.13901849,3328.8,3327.5,0.00450409]
[1768442275269,0.13901849,3328.8,3327.7,0.96348977]
[1768442278177,0.88012624,3328.7,3327.7,0.96348977]
[1768442278375,0.13901849,3328.8,3327.7,0.96348977]
[1768442278573,0.88014318,3328.7,3327.7,0.96348977]
[1768442278772,0.13901849,3328.8,3327.7,0.96348977]
[1768442279074,0.88015219,3328.7,3327.5,0.00450409]
[1768442279261,0.13901849,3328.8,3327.5,0.00450409]
[1768442279459,0.88025482,3328.7,3327.5,0.00450409]
[1768442279675,0.13901849,3328.8,3327.5,0.00450409]
[1768442279865,0.8802564,3328.7,3327.5,0.00450409]
[1768442280064,0.13901849,3328.8,3327.5,0.00450409]
[1768442280264,0.88032603,3328.7,3327.5,0.00450409]
[1768442280569,0.13901849,3328.8,3327.5,0.00450409]
[1768442280760,0.88032581,3328.7,3327.5,0.00450409]
[1768442280960,0.13901849,3328.8,3327.5,0.00450409]
[1768442281172,0.8803233,3328.7,3327.5,0.00450409]
[1768442281372,0.13901849,3328.8,3327.5,0.00450409]
[1768442281674,0.88041272,3328.7,3327.5,0.00450409]
[1768442281873,0.13901849,3328.4,3327.5,0.00450409]
[1768442282071,0.13901849,3328.9,3327.5,0.96799386]
[1768442282260,0.88048198,3328.8,3327.8,0.96348977]
[1768442282465,0.88048198,3328.7,3327.8,0.96348977]
[1768442282680,0.88048198,3328.6,3327.8,0.96348977]
[1768442282867,0.88048198,3328.5,3327.8,0.96348977]
[1768442283069,0.13901849,3328.9,3327.8,0.96348977]
[1768442283268,0.88072827,3328.8,3327.5,0.96799386]
[1768442283468,0.13901849,3328.6,3327.5,0.00450409]
[1768442283777,1.01974245,3328.5,3327.5,0.00450409]
[1768442283977,0.13901849,3328.5,3327.5,0.00450409]
[1768442284869,0.88076769,3328.4,3327.5,0.00450409]
[1768442285075,0.13901849,3328.2,3326.9,0.96348977]
[1768442286179,0.00450409,3327.9,3327.2,0.96799386]
[1768442286979,0.13901849,3328.6,3327.5,0.96348977]
[1768442287173,0.88095477,3328.5,3327.5,0.96348977]
[1768442287374,0.88095477,3328.4,3327.5,0.96348977]
[1768442287569,0.88109627,3328.3,3327.2,0.00450409]
[1768442287775,0.13901849,3328.6,3327.2,0.96799386]
[1768442287973,0.88110692,3328.5,3327.2,0.96799386]
[1768442288184,0.88110692,3328.4,3327.2,0.96799386]
[1768442288376,0.88110692,3328.3,3327.2,0.96799386]
[1768442288578,0.13901849,3328.6,3327.2,0.96799386]
[1768442288777,0.88121021,3328.5,3327.2,0.96799386]
[1768442288975,0.88121021,3328.4,3327.2,0.96799386]
[1768442289178,0.88121021,3328.3,3327.2,0.96799386]
[1768442289482,0.13901849,3328.6,3327.2,0.00450409]
[1768442289672,0.88123502,3328.5,3327.2,0.00450409]
[1768442289874,0.88123502,3328.4,3327.2,0.00450409]
[1768442290082,0.88123502,3328.3,3327.2,0.00450409]
[1768442290284,0.13901849,3328.6,3327.4,0.96348977]
[1768442290483,0.88105446,3328.5,3327.4,0.96348977]
[1768442290683,0.88105446,3328.4,3327.4,0.96348977]
[1768442290888,0.88105446,3328.3,3327.4,0.96348977]
[1768442291085,0.13901849,3328.6,3327.4,0.96348977]
[1768442291307,1.19769263,3328.5,3324.8,0.14240014]
[1768442291477,0.96348977,3326.2,3324.8,0.14240014]
[1768442291984,0.88780923,3326.1,3324.9,1.10588991]
[1768442292184,0.96348977,3326.5,3324.9,1.10588991]
[1768442292387,0.00450409,3326.0,3325.4,0.00450409]
[1768442320305,0.14063703,3325.8,3323.9,0.13497223]
[1768442320512,0.96502022,3324.9,3324.0,1.103]
[1768442320716,0.96502022,3325.1,3324.0,1.103]
[1768442320902,0.96502022,3325.1,3323.9,0.13497223]
[1768442321113,0.88488715,3325.0,3323.9,0.13497223]
[1768442321321,0.88488715,3324.9,3324.0,4.194]
[1768442321513,0.96502022,3325.1,3324.1,0.00451107]
[1768442321813,0.88470041,3325.0,3324.1,0.00451107]
[1768442322009,0.88470041,3324.9,3324.2,1.186]
[1768442322312,0.96502022,3325.1,3324.2,1.186]
[1768442322504,0.88411168,3325.0,3324.2,1.186]
[1768442322702,0.88411168,3324.9,3324.2,1.186]
[1768442322913,0.96502022,3325.1,3324.2,1.186]
[1768442323115,0.884113,3325.0,3324.2,1.186]
[1768442323314,0.96502022,3325.1,3324.2,1.186]
[1768442323617,0.8836895,3325.0,3324.2,1.186]
[1768442323916,0.96502022,3325.1,3324.2,1.186]
[1768442324112,0.88354826,3325.0,3324.2,1.186]
[1768442324306,0.96502022,3325.1,3324.2,1.186]
[1768442324508,0.88318639,3325.0,3324.2,1.186]
[1768442324710,0.96502022,3325.1,3324.2,1.186]
[1768442325009,0.88316491,3325.0,3324.2,1.186]
[1768442325326,0.15038,3325.3,3324.2,1.186]
[1768442325617,1.84791097,3325.2,3324.2,1.186]
[1768442325818,0.88289075,3325.1,3324.2,1.186]
[1768442326118,0.96502022,3325.2,3324.2,1.186]
[1768442326321,0.88266569,3325.1,3324.2,1.186]
[1768442326515,0.96502022,3325.2,3324.2,1.186]
[1768442326712,0.88266347,3325.1,3324.3,1.186]
[1768442326905,0.96502022,3325.2,3324.3,1.186]
[1768442327110,0.88266416,3325.1,3324.3,1.186]
[1768442327313,0.96502022,3325.2,3324.3,1.186]
[1768442327519,0.88247431,3325.1,3324.3,1.186]
[1768442327723,0.96502022,3325.2,3324.1,0.00451107]
[1768442327920,0.88247473,3325.1,3324.4,1.186]
[1768442328115,0.96502022,3325.2,3324.4,1.186]
[1768442328321,0.88232054,3325.1,3324.4,1.186]
[1768442328515,0.15038,3325.3,3324.4,1.186]
[1768442328716,0.88231108,3325.2,3324.4,1.186]
[1768442329015,0.15038,3325.3,3324.4,1.186]
[1768442329326,0.88230873,3325.2,3324.4,1.186]
[1768442329513,0.88230873,3325.1,3324.4,1.186]
[1768442329717,0.15038,3325.3,3324.4,1.186]
[1768442329918,0.88220114,3325.2,3324.4,1.186]
[1768442330221,0.15038,3325.3,3324.4,1.186]
[1768442330425,0.88207069,3325.2,3324.4,1.186]
[1768442330723,0.88207069,3325.1,3324.4,1.186]
[1768442330920,0.15038,3325.3,3324.4,1.186]
[1768442331218,0.88206939,3325.2,3324.5,1.186]
[1768442331423,0.15035,3325.9,3324.8,0.96502022]
[1768442331625,0.88211181,3325.8,3324.8,0.96502022]
[1768442331821,0.88211181,3325.7,3324.8,0.96502022]
[1768442332025,0.88211181,3325.6,3324.8,0.96502022]
[1768442332221,0.15035,3325.9,3324.8,0.96502022]
[1768442332413,0.87667437,3325.8,3324.8,0.96502022]
[1768442332618,0.87667437,3325.7,3324.8,0.96502022]
[1768442332817,0.15035,3325.9,3324.6,0.96502022]
[1768442332818,0.87667437,3325.6,3324.6,0.96502022]
[1768442333015,0.96502022,3325.8,3324.5,1.32251064]
[1768442333323,0.87669384,3325.7,3324.5,1.32251064]
[1768442333518,0.87669384,3325.6,3324.5,1.32251064]
[1768442333718,0.96502022,3325.8,3324.5,0.13651064]
[1768442333923,0.87675321,3325.7,3324.5,0.13651064]
[1768442334118,0.87675321,3325.6,3324.6,4.195]
[1768442334322,0.96502022,3325.8,3324.6,4.195]
[1768442334521,0.87679752,3325.7,3324.6,4.195]
[1768442334720,0.87679752,3325.6,3324.7,1.186]
[1768442335026,0.96502022,3325.5,3324.8,1.186]
[1768442335318,0.15036,3325.7,3324.8,1.186]
[1768442335525,0.8768459,3325.6,3324.8,1.186]
[1768442335726,0.15036,3325.7,3324.8,1.186]
[1768442335727,0.8768459,3325.5,3324.8,1.186]
[1768442336026,0.15036,3325.7,3324.8,1.186]
[1768442336332,0.87689447,3325.6,3324.8,1.186]
[1768442336528,0.87689447,3325.5,3324.8,1.186]
[1768442336733,0.15036,3325.7,3324.8,1.186]
[1768442337026,0.87689435,3325.6,3324.8,1.186]
[1768442337222,0.87689435,3325.5,3324.8,1.186]
[1768442337424,0.15036,3325.7,3324.6,0.13651064]
[1768442337724,0.87694727,3325.6,3324.7,1.186]
[1768442337928,0.15036,3325.7,3324.7,1.186]
[1768442338128,0.87694854,3325.6,3324.7,1.186]
[1768442338428,0.15036,3325.7,3324.7,1.186]
[1768442338631,0.87702042,3325.6,3324.7,1.186]
[1768442338927,0.15036,3325.7,3324.7,1.186]
[1768442339128,0.8770206,3325.6,3324.7,1.186]
[1768442339428,0.15036,3325.7,3324.7,1.186]
[1768442339638,0.87710115,3325.6,3324.7,1.186]
[1768442339928,0.15036,3325.7,3324.7,1.186]
[1768442340229,0.87710117,3325.6,3324.7,1.186]
[1768442340415,0.15036,3325.7,3324.7,1.186]
[1768442340616,0.87713285,3325.6,3324.7,1.186]
[1768442340817,0.87713285,3325.5,3324.8,1.186]
[1768442341014,0.15036,3325.7,3324.6,0.13651064]
[1768442341220,0.8771762,3325.6,3324.7,1.186]
[1768442341420,0.8771762,3325.5,3324.7,1.186]
[1768442341621,0.15036,3325.7,3324.7,1.186]
[1768442341821,0.87723614,3325.6,3324.7,1.186]
[1768442342021,0.15036,3325.7,3324.7,1.186]
[1768442342232,0.87728887,3325.6,3324.3,3.009]
[1768442342432,0.15037,3325.4,3324.4,1.186]
[1768442343132,0.8773033,3325.3,3324.4,1.186]
[1768442343336,0.15037,3325.4,3324.4,1.186]
[1768442343631,0.87741309,3325.3,3324.5,1.186]
[1768442343821,0.15037,3325.4,3324.5,1.186]
[1768442344020,0.87741273,3325.3,3324.5,1.186]
[1768442344222,0.15037,3325.4,3324.5,1.186]
[1768442344417,0.87750633,3325.3,3324.5,1.186]
[1768442344622,0.15037,3325.4,3324.5,1.186]
[1768442344836,0.87754162,3325.3,3324.5,1.186]
[1768442345024,0.15037,3325.4,3324.5,1.186]
[1768442345222,0.87765932,3325.3,3324.5,1.186]
[1768442345524,0.87765932,3325.2,3324.5,1.186]
[1768442345724,0.15037,3325.4,3324.5,1.186]
[1768442346025,0.8776968,3325.3,3324.6,1.186]
[1768442346226,0.8776968,3325.2,3324.6,1.186]
[1768442346434,0.15037,3325.4,3324.6,1.186]
[1768442346634,0.87788128,3325.3,3324.6,1.186]
[1768442346930,0.87788128,3325.2,3324.6,1.186]
[1768442347132,0.15037,3325.4,3324.6,1.186]
[1768442347337,0.8780709,3325.3,3324.6,1.186]
[1768442347531,0.8780709,3325.2,3324.6,1.186]
[1768442347727,0.15037,3325.4,3324.6,1.186]
[1768442348028,1.02847874,3325.3,3324.6,1.186]
[1768442348222,0.87810874,3325.2,3324.6,1.186]
[1768442351637,0.87810874,3325.2,3324.6,1.32251064]
[1768442353537,0.87810874,3325.2,3324.7,1.186]
[1768442354241,3.70244276,3326.5,3324.7,7.186]
[1768442354531,0.9655218,3327.1,3325.2,0.13651064]
[1768442354732,0.9655218,3327.1,3324.8,5.1605218]
[1768442355327,0.00451107,3326.3,3325.6,0.00451107]
[1768442355528,0.00451107,3326.3,3325.7,1.186]
[1768442357935,0.13746049,3326.8,3325.7,1.186]
[1768442359237,0.0036146,3327.1,3325.7,1.186]
[1768442359446,0.14107509,3327.1,3325.7,1.186]
[1768442363741,0.14107509,3327.1,3325.6,0.00451107]
[1768442364046,0.14107509,3327.1,3325.6,1.18951107]
[1768442364950,0.0036146,3327.1,3325.7,0.3509109]
[1768442368847,0.1539046,3327.1,3325.7,0.3509109]
[1768442372539,2.80604256,3327.9,3325.6,1.18951107]
[1768442372540,0.33257224,3327.8,3325.9,0.3509109]
[1768442372737,0.33257224,3327.6,3325.9,0.3509109]
[1768442373442,0.3347917,3327.6,3325.9,0.3509109]
[1768442373746,0.15027,3327.5,3326.0,1.185]
[1768442373952,0.15027,3327.5,3326.0,4.193]
[1768442374353,0.15027,3327.5,3325.9,0.3509109]
[1768442374553,0.15027,3327.5,3326.0,4.193]
[1768442375755,0.15028,3327.4,3326.1,1.185]
[1768442377556,0.15028,3327.4,3325.9,0.3509109]
[1768442377750,0.15028,3327.4,3326.0,4.193]
[1768442382556,0.83946898,3327.3,3326.0,4.193]
[1768442382859,0.15028,3327.4,3326.0,4.193]
[1768442383048,0.83946851,3327.3,3326.0,4.193]
[1768442383356,0.84045498,3327.2,3326.0,4.193]
[1768442383559,0.15028,3327.4,3326.0,4.193]
[1768442383756,0.84045489,3327.3,3326.0,4.193]
[1768442384063,0.84045489,3327.2,3326.0,4.193]
[1768442384248,0.15028,3327.4,3326.0,4.193]
[1768442384549,0.84070695,3327.3,3326.0,4.193]
[1768442384756,0.84070695,3327.2,3326.0,4.193]
[1768442384955,0.15028,3327.4,3326.0,4.193]
[1768442385158,0.84069398,3327.3,3326.0,4.193]
[1768442385353,0.84069398,3327.2,3326.0,4.193]
[1768442385656,0.84069398,3327.1,3326.1,0.3509109]
[1768442385859,0.84069398,3327.0,3326.1,0.3509109]
[1768442386050,0.15028,3327.4,3326.1,0.3509109]
[1768442386351,0.84069056,3327.3,3326.1,0.3509109]
[1768442386552,0.84069056,3327.2,3326.1,0.3509109]
[1768442386752,0.84069056,3327.1,3326.1,0.3509109]
[1768442387050,0.84069056,3327.0,3326.1,0.3509109]
[1768442387252,0.15028,3327.4,3326.1,0.3509109]
[1768442387452,0.84071513,3327.3,3326.1,0.3509109]
[1768442387751,0.84071513,3327.2,3326.1,0.3509109]
[1768442387954,0.84071513,3327.1,3326.1,0.3509109]
[1768442388156,0.84071513,3327.0,3326.1,0.3509109]
[1768442388357,0.15028,3327.4,3326.1,0.3509109]
[1768442388558,0.84087817,3327.3,3326.1,0.3509109]
[1768442388753,0.84087817,3327.2,3326.1,0.3509109]
[1768442388968,0.84087817,3327.1,3326.1,0.3509109]
[1768442389168,0.84087817,3327.0,3326.1,0.3509109]
[1768442389369,0.15028,3327.4,3326.1,0.3509109]
[1768442389570,0.84094666,3327.3,3326.1,0.3509109]
[1768442389774,0.84094666,3327.2,3326.1,0.3509109]
[1768442389980,0.15028,3327.4,3326.1,0.3509109]
[1768442390173,0.84104511,3327.3,3326.1,0.3509109]
[1768442390366,0.84104511,3327.2,3326.2,1.185]
[1768442390567,0.15028,3327.4,3326.2,1.185]